lending/lending_fUSD_20241120
["ID","MTS","AMOUNT","RATE_DAILY","PERIOD"]
[342721952,1732086676209,-500.0,0.00054794,120]
[342721953,1732086676218,-2000.0,0.00054794,120]
[342721954,1732086676227,-500.0,0.00054794,120]
[342721955,1732086676236,-500.0,0.00054794,120]
[342721956,1732086676245,-500.0,0.00054794,120]
[342721957,1732086676255,-555.07339846,0.00054794,120]
[342721958,1732086676264,-500.0,0.00054794,120]
[342721959,1732086676272,-500.0,0.00054794,120]
[342721960,1732086676281,-500.0,0.00054794,120]
[342721961,1732086676290,-500.0,0.00054794,120]
[342721962,1732086676299,-507.38978762,0.00054794,120]
[342721963,1732086676312,-500.0,0.00054794,120]
[342721964,1732086676321,-501.73406337,0.00054794,120]
[342721965,1732086676330,-500.00391508,0.00054794,120]
[342721966,1732086676344,-500.0,0.00054794,120]
[342721967,1732086676353,-330.35639762,0.00054794,2]
[342721968,1732086676362,-500.56280536,0.00054794,120]
[342721969,1732086676371,-500.0,0.00054794,120]
[342721970,1732086676381,-500.0,0.00054794,120]
[342721971,1732086676390,-500.0,0.00054794,120]
[342721972,1732086676399,-500.0,0.00054794,120]
[342721973,1732086676408,-500.0,0.00054794,120]
[342721974,1732086676417,-500.0,0.00054794,120]
[342721975,1732086676426,-500.0,0.00054794,120]
[342721976,1732086676435,-500.0,0.00054794,120]
[342721977,1732086676444,-500.0,0.00054794,7]
[342721978,1732086676453,-545.11484132,0.00054794,120]
[342721979,1732086676462,-798.52,0.00054794,120]
[342721980,1732086676472,-500.0,0.00054794,120]
[342721981,1732086676482,-500.0,0.00054794,120]
[342721982,1732086676491,-500.0,0.00054794,120]
[342721983,1732086676499,-500.23433229,0.00054794,120]
[342721984,1732086676508,-982.26,0.00054794,120]
[342721985,1732086676517,-500.0,0.00054794,120]
[342721986,1732086676527,-500.0,0.00054794,120]
[342721987,1732086676536,-632.29701225,0.00054794,120]
[342721988,1732086676546,-500.0,0.00054794,120]
[342721989,1732086676558,-500.0,0.00054794,120]
[342721990,1732086676567,-500.0,0.00054794,120]
[342721991,1732086676577,-500.0,0.00054794,120]
[342721992,1732086676589,-500.0,0.00054794,120]
[342721993,1732086676598,-500.0,0.00054794,120]
[342721994,1732086676608,-707.74,0.00054794,120]
[342721995,1732086676617,-500.0,0.00054794,120]
[342721996,1732086676626,-500.0,0.00054794,120]
[342721997,1732086676635,-4470.82,0.00054794,120]
[342721998,1732086676645,-500.0,0.00054794,120]
[342721999,1732086676654,-182.1333118,0.00054794,120]
[342722000,1732086676663,-500.0,0.00054794,120]
[342722001,1732086676673,-500.0,0.00054794,120]
[342722002,1732086676682,-530.94192575,0.00054794,120]
[342722003,1732086676692,-500.0,0.00054794,120]
[342722004,1732086676701,-500.0,0.00054794,120]
[342722005,1732086676710,-523.66724067,0.00054794,120]
[342722006,1732086676720,-500.0,0.00054794,120]
[342722007,1732086676729,-500.0,0.00054794,120]
[342722008,1732086676738,-500.0,0.00054794,120]
[342722009,1732086676747,-650.76,0.00054794,21]
[342722010,1732086676757,-500.0,0.00054794,120]
[342722011,1732086676767,-2268.24,0.00054794,120]
[342722012,1732086676776,-3957.68,0.00054794,60]
[342722013,1732086676785,-500.0,0.00054794,120]
[342722014,1732086676795,-348.9901681,0.00054794,120]
[342722015,1732086676805,-500.0,0.00054794,120]
[342722016,1732086676814,-500.0,0.00054794,120]
[342722017,1732086676824,-500.0,0.00054794,120]
[342722018,1732086676835,-500.0,0.00054794,120]
[342722019,1732086676844,-500.0,0.00054794,120]
[342722020,1732086676853,-500.0,0.00054794,120]
[342722021,1732086676862,-500.0,0.00054794,120]
[342722022,1732086676871,-717.59,0.00054794,120]
[342722023,1732086676880,-249.0921371,0.00054794,120]
[342722024,1732086676891,-500.0,0.00054794,120]
[342722025,1732086676901,-3094.65,0.00054794,120]
[342722026,1732086676910,-500.0,0.00054794,120]
[342722027,1732086676921,-500.0,0.00054794,120]
[342722028,1732086676931,-298.43552173,0.00054794,120]
[342722029,1732086676940,-500.0,0.00054794,120]
[342722030,1732086676950,-2000.0,0.00054794,120]
[342722031,1732086676959,-500.0,0.00054794,120]
[342722032,1732086676969,-500.0,0.00054794,120]
[342722033,1732086676978,-500.0,0.00054794,120]
[342722034,1732086676988,-500.0,0.00054794,120]
[342722035,1732086676997,-500.0,0.00054794,120]
[342722036,1732086677006,-500.0,0.00054794,120]
[342722037,1732086677015,-500.0,0.00054794,120]
[342722038,1732086677025,-500.0,0.00054794,120]
[342722039,1732086677034,-548.96634111,0.00054794,120]
[342722040,1732086677044,-500.0,0.00054794,120]
[342722041,1732086677053,-998.06,0.00054794,120]
[342722042,1732086677062,-2500.0,0.00054794,120]
[342722043,1732086677072,-500.0,0.00054794,120]
[342722044,1732086677081,-500.0,0.00054794,120]
[342722045,1732086677092,-500.0,0.00054794,120]
[342722046,1732086677101,-500.0,0.00054794,120]
[342722047,1732086677110,-500.0,0.00054794,120]
[342722048,1732086677119,-500.0,0.00054794,120]
[342722049,1732086677128,-500.0,0.00054794,120]
[342722050,1732086677139,-1516.88,0.00054794,120]
[342722051,1732086677148,-500.0,0.00054794,120]
[342722052,1732086677157,-617.47,0.00054794,120]
[342722053,1732086677166,-2604.2,0.00054794,120]
[342722054,1732086677174,-500.17,0.00054794,120]
[342722055,1732086677183,-500.0,0.00054794,120]
[342722056,1732086677192,-390.02394497,0.00054794,120]
[342722057,1732086677201,-205.33946705,0.00054794,120]
[342722058,1732086677210,-500.0,0.00054794,120]
[342722059,1732086677219,-500.0,0.00054794,120]
[342722060,1732086677227,-500.0,0.00054794,120]
[342722061,1732086677236,-419.52349548,0.00054794,120]
[342722062,1732086677245,-500.0,0.00054794,120]
[342722063,1732086677255,-500.0,0.00054794,120]
[342722064,1732086677264,-502.18196975,0.00054794,120]
[342722065,1732086677273,-635.36,0.00054794,120]
[342722066,1732086677283,-500.0,0.00054794,120]
[342722067,1732086677291,-500.0,0.00054794,120]
[342722068,1732086677301,-500.0,0.00054794,120]
[342722069,1732086677315,-500.0,0.00054794,120]
[342722070,1732086677324,-500.0,0.00054794,120]
[342722071,1732086677334,-500.0,0.00054794,120]
[342722072,1732086677343,-500.0,0.00054794,120]
[342722073,1732086677353,-500.0,0.00054794,120]
[342722074,1732086677362,-500.0,0.00054794,120]
[342722075,1732086677371,-500.0,0.00054794,120]
[342722076,1732086677381,-500.0,0.00054794,120]
[342722077,1732086677390,-500.0,0.00054794,120]
[342722078,1732086677400,-500.0,0.00054794,120]
[342722079,1732086677409,-271.07861597,0.00054794,8]
[342722080,1732086677418,-517.84139363,0.00054794,120]
[342722081,1732086677427,-500.0,0.00054794,120]
[342722082,1732086677437,-500.0,0.00054794,120]
[342722083,1732086677446,-500.0,0.00054794,120]
[342722084,1732086677456,-501.26847015,0.00054794,120]
[342722085,1732086677468,-500.0,0.00054794,120]
[342722086,1732086677478,-500.0,0.00054794,120]
[342722087,1732086677487,-500.0,0.00054794,120]
[342722088,1732086677497,-500.0,0.00054794,120]
[342722089,1732086677507,-700.75,0.00054794,120]
[342722090,1732086677516,-500.0,0.00054794,120]
[342722091,1732086677525,-500.0,0.00054794,120]
[342722092,1732086677535,-501.06833097,0.00054794,120]
[342722093,1732086677547,-500.0,0.00054794,120]
[342722094,1732086677556,-500.0,0.00054794,120]
[342722095,1732086677565,-505.72,0.00054794,120]
[342722096,1732086677574,-500.0,0.00054794,120]
[342722097,1732086677584,-501.90631906,0.00054794,120]
[342722098,1732086677594,-500.0,0.00054794,120]
[342722099,1732086677603,-500.0,0.00054794,120]
[342722100,1732086677613,-500.0,0.00054794,120]
[342722101,1732086677622,-1000.0,0.00054794,120]
[342722102,1732086677631,-500.0,0.00054794,120]
[342722103,1732086677640,-500.0,0.00054794,120]
[342722104,1732086677650,-500.0,0.00054794,120]
[342722105,1732086677660,-500.0,0.00054794,30]
[342722106,1732086677670,-500.0,0.00054794,120]
[342722107,1732086677680,-500.0,0.00054794,120]
[342722108,1732086677690,-500.0,0.00054794,120]
[342722109,1732086677699,-500.0,0.00054794,120]
[342722110,1732086677708,-500.0,0.00054794,120]
[342722111,1732086677717,-500.0,0.00054794,120]
[342722112,1732086677727,-501.14883148,0.00054794,120]
[342722113,1732086677736,-505.59017902,0.00054794,120]
[342722114,1732086677746,-500.0,0.00054794,120]
[342722115,1732086677755,-500.0,0.00054794,120]
[342722116,1732086677764,-3206.56,0.00054794,120]
[342722117,1732086677773,-508.31,0.00054794,120]
[342722118,1732086677783,-501.75750384,0.00054794,120]
[342722119,1732086677792,-500.0,0.00054794,120]
[342722120,1732086677801,-946.93,0.00054794,120]
[342722121,1732086677811,-500.0,0.00054794,120]
[342722122,1732086677820,-500.0,0.00054794,120]
[342722123,1732086677830,-500.0,0.00054794,120]
[342722124,1732086677841,-500.0,0.00054794,120]
[342722125,1732086677851,-500.0,0.00054794,120]
[342722126,1732086677861,-500.0,0.00054794,120]
[342722127,1732086677871,-500.0,0.00054794,120]
[342722128,1732086677880,-500.0,0.00054794,120]
[342722129,1732086677890,-500.0,0.00054794,120]
[342722130,1732086677899,-500.0,0.00054794,120]
[342722131,1732086677910,-500.0,0.00054794,120]
[342722132,1732086677920,-500.0,0.00054794,120]
[342722133,1732086677930,-500.0,0.00054794,120]
[342722134,1732086677939,-500.0,0.00054794,120]
[342722135,1732086677948,-500.0,0.00054794,120]
[342722136,1732086677962,-500.0,0.00054794,120]
[342722137,1732086677971,-500.0,0.00054794,120]
[342722138,1732086677981,-2581.57,0.00054794,120]
[342722139,1732086677990,-500.0,0.00054794,120]
[342722140,1732086678000,-500.0,0.00054794,120]
[342722141,1732086678009,-500.0,0.00054794,120]
[342722142,1732086678018,-500.0,0.00054794,120]
[342722143,1732086678028,-501.67049006,0.00054794,120]
[342722144,1732086678037,-500.0,0.00054794,120]
[342722145,1732086678047,-500.0,0.00054794,120]
[342722146,1732086678056,-532.84856095,0.00054794,120]
[342722147,1732086678066,-1301.4,0.00054794,120]
[342722148,1732086678075,-5192.93,0.00054794,120]
[342722149,1732086678086,-500.0,0.00054794,120]
[342722150,1732086678095,-500.0,0.00054794,120]
[342722151,1732086678104,-500.0,0.00054794,120]
[342722152,1732086678113,-500.0,0.00054794,120]
[342722153,1732086678123,-500.0,0.00054794,120]
[342722154,1732086678132,-306.00106792,0.00054794,120]
[342722155,1732086678142,-538.29581126,0.00054794,120]
[342722156,1732086678151,-500.0,0.00054794,120]
[342722157,1732086678160,-500.0,0.00054794,120]
[342722158,1732086678169,-700.0,0.00054794,120]
[342722159,1732086678179,-500.0,0.00054794,120]
[342722160,1732086678188,-520.02542959,0.00054794,120]
[342722161,1732086678197,-556.12515116,0.00054794,120]
[342722162,1732086678206,-500.0,0.00054794,120]
[342722163,1732086678216,-500.0,0.00054794,120]
[342722164,1732086678225,-459.59886909,0.00054794,120]
[342722165,1732086678234,-500.0,0.00054794,120]
[342722166,1732086678244,-500.0,0.00054794,120]
[342722167,1732086678253,-500.0,0.00054794,120]
[342722168,1732086678262,-500.0,0.00054794,120]
[342722169,1732086678271,-500.0,0.00054794,120]
[342722170,1732086678280,-500.0,0.00054794,120]
[342722171,1732086678290,-504.66507468,0.00054794,120]
[342722172,1732086678299,-500.0,0.00054794,120]
[342722173,1732086678313,-852.9,0.00054794,120]
[342722174,1732086678323,-500.0,0.00054794,120]
[342722175,1732086678332,-500.0,0.00054794,120]
[342722176,1732086678343,-500.0,0.00054794,120]
[342722177,1732086678352,-500.0,0.00054794,120]
[342722178,1732086678361,-500.0,0.00054794,120]
[342722179,1732086678370,-500.0,0.00054794,120]
[342722180,1732086678379,-2774.17,0.00054794,120]
[342722181,1732086678392,-3061.68,0.00054794,120]
[342722182,1732086678401,-500.0,0.00054794,120]
[342722183,1732086678411,-500.0,0.00054794,120]
[342722184,1732086678421,-500.0,0.00054794,120]
[342722185,1732086678569,-500.0,0.00054794,120]
[342722186,1732086678580,-283.19344081,0.00054794,120]
[342722187,1732086678591,-500.0,0.00054794,60]
[342722188,1732086678600,-500.0,0.00054794,120]
[342722189,1732086678610,-500.0,0.00054794,120]
[342722190,1732086678619,-522.5900175,0.00054794,120]
[342722191,1732086678628,-2031.6,0.00054794,120]
[342722192,1732086678638,-500.0,0.00054794,120]
[342722193,1732086678647,-500.0,0.00054794,120]
[342722194,1732086678656,-500.0,0.00054794,120]
[342722195,1732086678666,-500.0,0.00054794,120]
[342722196,1732086678675,-500.0,0.00054794,120]
[342722197,1732086678685,-500.0,0.00054794,120]
[342722198,1732086678694,-500.0,0.00054794,120]
[342722199,1732086678704,-500.0,0.00054794,120]
[342722200,1732086678714,-500.0,0.00054794,120]
[342722201,1732086678724,-505.59299616,0.00054794,120]
[342722202,1732086678733,-185.55387221,0.00054794,30]
[342722203,1732086678743,-500.0,0.00054794,120]
[342722204,1732086678753,-500.0,0.00054794,120]
[342722205,1732086678762,-500.0,0.00054794,120]
[342722206,1732086678771,-500.0,0.00054794,120]
[342722207,1732086678781,-500.0,0.00054794,120]
[342722208,1732086678791,-500.0,0.00054794,120]
[342722209,1732086678800,-500.0,0.00054794,120]
[342722210,1732086678810,-500.0,0.00054794,120]
[342722211,1732086678820,-500.0,0.00054794,120]
[342722212,1732086678830,-500.0,0.00054794,120]
[342722213,1732086678840,-500.0,0.00054794,120]
[342722214,1732086678850,-500.0,0.00054794,120]
[342722215,1732086678860,-2936.91,0.00054794,120]
[342722216,1732086678869,-500.0,0.00054794,120]
[342722217,1732086678880,-500.0,0.00054794,120]
[342722218,1732086678889,-515.53947956,0.00054794,120]
[342722219,1732086678898,-500.0,0.00054794,120]
[342722220,1732086678908,-500.0,0.00054794,120]
[342722221,1732086678918,-500.0,0.00054794,120]
[342722222,1732086678928,-720.2,0.00054794,120]
[342722223,1732086678938,-500.0,0.00054794,120]
[342722224,1732086678947,-500.0,0.00054794,120]
[342722225,1732086678957,-500.0,0.00054794,120]
[342722226,1732086678966,-500.0,0.00054794,120]
[342722227,1732086678976,-500.0,0.00054794,120]
[342722228,1732086678985,-500.0,0.00054794,120]
[342722229,1732086678995,-510.78652664,0.00054794,120]
[342722230,1732086679004,-500.0,0.00054794,120]
[342722231,1732086679014,-2810.53,0.00054794,120]
[342722232,1732086679024,-500.0,0.00054794,120]
[342722233,1732086679034,-500.0,0.00054794,120]
[342722234,1732086679043,-500.0,0.00054794,120]
[342722235,1732086679053,-500.0,0.00054794,120]
[342722236,1732086679063,-500.0,0.00054794,120]
[342722237,1732086679072,-500.0,0.00054794,120]
[342722238,1732086679082,-500.0,0.00054794,120]
[342722239,1732086679097,-1822.63,0.00054794,120]
[342722240,1732086679106,-1273.99,0.00054794,120]
[342722241,1732086679116,-500.0,0.00054794,120]
[342722242,1732086679125,-498.23966528,0.00054794,120]
[342722243,1732086679134,-500.0,0.00054794,120]
[342722244,1732086679144,-501.96561039,0.00054794,120]
[342722245,1732086679154,-500.0,0.00054794,120]
[342722246,1732086679163,-850.0,0.00054794,120]
[342722247,1732086679172,-505.20241177,0.00054794,120]
[342722248,1732086679181,-500.0,0.00054794,120]
[342722249,1732086679191,-500.0,0.00054794,120]
[342722250,1732086679199,-500.0,0.00054794,120]
[342722251,1732086679208,-500.0,0.00054794,120]
[342722252,1732086679218,-502.78770721,0.00054794,120]
[342722253,1732086679228,-500.0,0.00054794,120]
[342722254,1732086679238,-162.57771043,0.00054794,120]
[342722255,1732086679247,-711.44,0.00054794,120]
[342722256,1732086679257,-500.0,0.00054794,120]
[342722257,1732086679266,-1000.0,0.00054794,120]
[342722258,1732086679276,-500.0,0.00054794,120]
[342722259,1732086679285,-729.82,0.00054794,120]
[342722260,1732086679294,-509.54116713,0.00054794,120]
[342722261,1732086679304,-500.0,0.00054794,120]
[342722262,1732086679315,-500.0,0.00054794,120]
[342722263,1732086679325,-2955.44,0.00054794,120]
[342722264,1732086679334,-508.58599952,0.00054794,120]
[342722265,1732086679347,-500.0,0.00054794,120]
[342722266,1732086679356,-1000.0,0.00054794,2]
[342722267,1732086679365,-500.0,0.00054794,120]
[342722268,1732086679374,-500.0,0.00054794,20]
[342722269,1732086679385,-500.0,0.00054794,120]
[342722270,1732086679396,-500.0,0.00054794,120]
[342722271,1732086679406,-2080.78,0.00054794,120]
[342722272,1732086679416,-504.98352604,0.00054794,120]
[342722273,1732086679425,-500.0,0.00054794,120]
[342722274,1732086679435,-507.430776,0.00054794,120]
[342722275,1732086679444,-507.84321662,0.00054794,120]
[342722276,1732086679454,-500.0,0.00054794,120]
[342722277,1732086679464,-500.0,0.00054794,120]
[342722278,1732086679475,-338.2651321,0.00054794,120]
[342722279,1732086679484,-500.0,0.00054794,120]
[342722280,1732086679493,-500.0,0.00054794,120]
[342722281,1732086679503,-500.0,0.00054794,7]
[342722282,1732086679513,-500.0,0.00054794,120]
[342722283,1732086679522,-1918.47,0.00054794,120]
[342722284,1732086679531,-507.46286538,0.00054794,120]
[342722285,1732086679541,-500.0,0.00054794,120]
[342722286,1732086679550,-606.63,0.00054794,120]
[342722287,1732086679559,-500.0,0.00054794,120]
[342722288,1732086679568,-518.31199154,0.00054794,120]
[342722289,1732086679577,-500.0,0.00054794,120]
[342722290,1732086679587,-1137.2,0.00054794,3]
[342722291,1732086679596,-504.63792244,0.00054794,120]
[342722292,1732086679606,-500.0,0.00054794,120]
[342722293,1732086679615,-529.93371498,0.00054794,120]
[342722294,1732086679624,-500.0,0.00054794,120]
[342722295,1732086679634,-500.0,0.00054794,120]
[342722296,1732086679643,-500.0,0.00054794,120]
[342722297,1732086679653,-500.0,0.00054794,120]
[342722298,1732086679662,-2847.53,0.00054794,120]
[342722299,1732086679671,-546.35228965,0.00054794,120]
[342722300,1732086679680,-500.0,0.00054794,120]
[342722301,1732086679689,-500.0,0.00054794,120]
[342722302,1732086679699,-500.0,0.00054794,120]
[342722303,1732086679708,-500.0,0.00054794,120]
[342722304,1732086679717,-500.0,0.00054794,120]
[342722305,1732086679726,-500.0,0.00054794,120]
[342722306,1732086679735,-500.0,0.00054794,120]
[342722307,1732086679745,-500.0,0.00054794,120]
[342722308,1732086679754,-500.0,0.00054794,120]
[342722309,1732086679763,-503.21030569,0.00054794,120]
[342722310,1732086679773,-500.0,0.00054794,120]
[342722311,1732086679782,-3545.19,0.00054794,120]
[342722312,1732086679791,-500.0,0.00054794,120]
[342722313,1732086679802,-504.68352953,0.00054794,120]
[342722314,1732086679812,-500.0,0.00054794,120]
[342722315,1732086679821,-500.0,0.00054794,120]
[342722316,1732086679830,-500.0,0.00054794,120]
[342722317,1732086679841,-500.0,0.00054794,120]
[342722318,1732086679850,-508.0,0.00054795,120]
[342722319,1732086679859,-503.0,0.00054795,120]
[342722320,1732086679869,-515.0,0.00054795,120]
[342722321,1732086679878,-503.0,0.00054795,120]
[342722322,1732086679887,-150.0,0.00054795,120]
[342722323,1732086679897,-150.0,0.00054795,120]
[342722324,1732086679906,-150.0,0.00054795,120]
[342722325,1732086679916,-246.28216732,0.00054795,120]
[342722326,1732086679925,-2071.23786436,0.000548,90]
[342722327,1732086679934,-500.0,0.000548,120]
[342722328,1732086679944,-1001.9,0.000548,120]
[342722329,1732086679953,-6119.74671914,0.000549,120]
[342722330,1732086679962,-70000.0,0.0005493,120]
[342722331,1732086679971,-12542.18163532,0.00055,5]
[342722332,1732086679980,-11366.46288752,0.00055,120]
[342722333,1732086679989,-67980.1712762,0.00055,15]
[342722334,1732086679999,-1000.0,0.00055,120]
[342722335,1732086680008,-384189.52325065,0.00055,120]
[342722336,1732086680017,-2148.8865108,0.00055,120]
[342722337,1732086680026,-700.0,0.00055,2]
[342722338,1732086680036,-700.0,0.00055,2]
[342722339,1732086680045,-254.039283,0.00055,100]
[342722340,1732086680054,-150.0,0.00055,108]
[342722341,1732086680063,-50000.0,0.00055,120]
[342722342,1732086680072,-500.0,0.00055068,120]
[342722343,1732086680085,-191.34954136,0.00055068,120]
[342722344,1732086680098,-609.20782182,0.00055068,120]
[342722345,1732086680111,-246.08,0.00055068,120]
[342722346,1732086680124,-246.08,0.00055068,120]
[342722347,1732086680138,-578.78990258,0.00055068,120]
[342722348,1732086680152,-500.90207911,0.00055068,120]
[342722349,1732086680166,-171.33234898,0.00055068,120]
[342722350,1732086680180,-501.34543183,0.00055068,120]
[342722351,1732086680192,-501.21064173,0.00055068,120]
[342722352,1732086680203,-500.0,0.00055068,120]
[342722353,1732086680216,-501.81595619,0.00055068,120]
[342722354,1732086680230,-501.84974444,0.00055068,120]
[342722355,1732086680243,-500.0,0.00055068,7]
[342722356,1732086680256,-501.72861394,0.00055068,120]
[342722357,1732086680271,-501.40565438,0.00055068,120]
[342722358,1732086680284,-501.5703332,0.00055068,120]
[342722359,1732086680299,-500.0,0.00055068,120]
[342722360,1732086680317,-501.66883814,0.00055068,120]
[342722361,1732086680331,-501.44998536,0.00055068,120]
[342722362,1732086680348,-526.05944495,0.00055068,120]
[342722363,1732086680362,-3015.583357,0.00055068,120]
[342722364,1732086680375,-500.0,0.00055068,120]
[342722365,1732086680388,-500.0,0.00055068,120]
[342722366,1732086680399,-2434.320799,0.00055068,120]
[342722367,1732086680412,-502.60692452,0.00055068,120]
[342722368,1732086680427,-500.0,0.00055068,120]
[342722369,1732086680438,-500.0,0.00055068,120]
[342722370,1732086680448,-500.87040585,0.00055068,120]
[342722371,1732086680460,-500.0,0.00055068,120]
[342722372,1732086680474,-502.84756451,0.00055068,120]
[342722373,1732086680485,-298.01149358,0.00055068,120]
[342722374,1732086680496,-522.50350542,0.00055068,120]
[342722375,1732086680510,-501.27384817,0.00055068,120]
[342722376,1732086680521,-500.0,0.00055068,120]
[342722377,1732086680533,-507.82238277,0.00055068,120]
[342722378,1732086680545,-502.30510227,0.00055068,120]
[342722379,1732086680557,-501.2994894,0.00055068,120]
[342722380,1732086680569,-505.94145067,0.00055068,120]
[342722381,1732086680581,-500.0,0.00055068,120]
[342722382,1732086680595,-500.0,0.00055068,120]
[342722383,1732086680606,-255.61697905,0.00055068,120]
[342722384,1732086680618,-500.0,0.00055068,120]
[342722385,1732086680630,-500.0,0.00055068,120]
[342722386,1732086680642,-500.0,0.00055068,120]
[342722387,1732086680654,-500.0,0.00055068,120]
[342722388,1732086680666,-500.0,0.00055068,120]
[342722389,1732086680678,-500.0,0.00055068,120]
[342722390,1732086680690,-500.0,0.00055068,120]
[342722391,1732086680702,-500.0,0.00055068,120]
[342722392,1732086680714,-500.0,0.00055068,120]
[342722393,1732086680728,-500.0,0.00055068,120]
[342722394,1732086680739,-500.0,0.00055068,120]
[342722395,1732086680751,-500.0,0.00055068,120]
[342722396,1732086680763,-500.0,0.00055068,120]
[342722397,1732086680773,-500.0,0.00055068,120]
[342722398,1732086680784,-500.0,0.00055068,120]
[342722399,1732086680795,-500.0,0.00055068,120]
[342722400,1732086680808,-500.0,0.00055068,120]
[342722401,1732086680819,-500.0,0.00055068,120]
[342722402,1732086680831,-200.0,0.00055068,10]
[342722403,1732086680843,-500.0,0.00055068,120]
[342722404,1732086680854,-500.0,0.00055068,120]
[342722405,1732086680865,-500.81738433,0.00055068,120]
[342722406,1732086680877,-500.0,0.00055068,120]
[342722407,1732086680888,-500.0,0.00055068,120]
[342722408,1732086680899,-500.0,0.00055068,120]
[342722409,1732086680910,-500.0,0.00055068,120]
[342722410,1732086680921,-500.0,0.00055068,120]
[342722411,1732086680933,-500.0,0.00055068,120]
[342722412,1732086680945,-500.0,0.00055068,120]
[342722413,1732086680956,-508.98355591,0.00055068,120]
[342722414,1732086680967,-502.37176786,0.00055068,120]
[342722415,1732086680977,-500.0,0.00055068,120]
[342722416,1732086680988,-500.0,0.00055068,120]
[342722417,1732086680999,-500.0,0.00055068,120]
[342722418,1732086681010,-500.0,0.00055068,120]
[342722419,1732086681021,-533.89083175,0.00055068,120]
[342722420,1732086681031,-500.0,0.00055068,120]
[342722421,1732086681042,-500.0,0.00055068,120]
[342722422,1732086681053,-500.0,0.00055068,120]
[342722423,1732086681064,-500.0,0.00055068,120]
[342722424,1732086681075,-500.0,0.00055068,120]
[342722425,1732086681086,-500.0,0.00055068,120]
[342722426,1732086681097,-508.71524042,0.00055068,120]
[342722427,1732086681108,-500.0,0.00055068,120]
[342722428,1732086681119,-500.0,0.00055068,120]
[342722429,1732086681129,-500.0,0.00055068,120]
[342722430,1732086681140,-500.0,0.00055068,120]
[342722431,1732086681151,-501.4467875,0.00055068,120]
[342722432,1732086681161,-500.0,0.00055068,120]
[342722433,1732086681172,-503.58737107,0.00055068,120]
[342722434,1732086681183,-500.0,0.00055068,120]
[342722435,1732086681193,-500.0,0.00055068,120]
[342722436,1732086681203,-500.0,0.00055068,120]
[342722437,1732086681213,-503.80132317,0.00055068,120]
[342722438,1732086681224,-500.0,0.00055068,120]
[342722439,1732086681235,-500.0,0.00055068,120]
[342722440,1732086681246,-500.0,0.00055068,14]
[342722441,1732086681256,-505.74896174,0.00055068,120]
[342722442,1732086681267,-500.0,0.00055068,120]
[342722443,1732086681278,-500.0,0.00055068,120]
[342722444,1732086681289,-500.0,0.00055068,120]
[342722445,1732086681299,-502.20398749,0.00055068,120]
[342722446,1732086681315,-500.0,0.00055068,120]
[342722447,1732086681326,-504.53703516,0.00055068,120]
[342722448,1732086681337,-500.0,0.00055068,120]
[342722449,1732086681347,-500.0,0.00055068,120]
[342722450,1732086681358,-501.59355661,0.00055068,120]
[342722451,1732086681369,-500.0,0.00055068,7]